[Event "8th Mersin Open 2024"]
[Site "Mersin"]
[Date "2024.11.13"]
[Round "6"]
[White "Kilic, Cihan"]
[Black "Taavoni, Rahim"]
[Result "0-1"]
[ECO "A46"]
[WhiteElo "1894"]
[BlackElo "1958"]
[Annotator "NA RC"]
[PlyCount "116"]
[EventDate "2024.11.10"]
[EventType "swiss"]
[EventCountry "TUR"]
[SourceTitle "playchess.com"]
[Source "ChessBase"]
[SourceQuality "1"]
[TimeControl "5400+30"]

1. d4 {[%emt 0:01:00]} Nf6 {[%emt 0:01:00]} 2. Nf3 {[%emt 0:00:30]} e6 {[%emt 0:00:30]} 3. Bf4 {[%emt 0:00:30]} c5 {[%emt 0:00:30]} 4. e3 {[%emt 0:00:00]} Qb6 {[%emt 0:02:30]} 5. Qc1 {[%emt 0:07:00]} Nc6 {[%emt 0:00:30]} 6. c3 {[%emt 0:00:30]} Nh5 {[%emt 0:00:00]} 7. Bg3 {[%emt 0:00:30]} Nxg3 {[%emt 0:05:00]} 8. hxg3 {[%emt 0:02:30]} g6 {[%emt 0:04:30]} 9. Nbd2 {[%emt 0:00:30]} d5 {[%emt 0:05:30]} 10. dxc5 {[%emt 0:01:30]} Qxc5 {[%emt 0:00:30]} 11. e4 {[%emt 0:02:30]} Bg7 {[%emt 0:00:30]} 12. Bd3 {[%emt 0:03:30]} O-O {[%emt 0:03:30]} 13. Qc2 {[%emt 0:02:30]} Qe7 {[%emt 0:11:30]} 14. O-O {[%emt 0:02:30]} d4 {[%emt 0:08:30]} 15. cxd4 {[%emt 0:01:30]} Nxd4 {[%emt 0:00:00]} 16. Nxd4 {[%emt 0:00:30]} Bxd4 {[%emt 0:00:00]} 17. Nf3 {[%emt 0:00:30]} Bg7 {[%emt 0:00:30]} 18. e5 {[%emt 0:00:30]} b6 {[%emt 0:00:30]} 19. Be4 {[%emt 0:00:30]} Bb7 {[%emt 0:00:30]} 20. Rac1 {[%emt 0:00:30]} Rac8 {[%emt 0:00:30]} 21. Qa4 {[%emt 0:00:30]} Bxe4 {[%emt 0:00:30]} 22. Qxe4 {[%emt 0:00:00]} Rfd8 {[%emt 0:17:30]} 23. a3 {[%emt 0:03:00]} Rxc1 {[%emt 0:04:30]} 24. Rxc1 {[%emt 0:00:00]} Bh6 {[%emt 0:00:00]} 25. Rc2 {[%emt 0:03:00]} Bg7 {[%emt 0:06:00]} 26. Kh2 {[%emt 0:04:30]} h6 {[%emt 0:00:30]} 27. Qh4 {[%emt 0:02:30]} Kf8 {[%emt 0:03:30]} 28. Qf4 {[%emt 0:03:30]} Kg8 {[%emt 0:01:30]} 29. Qc1 {[%emt 0:03:30]} Kh7 {[%emt 0:02:30]} 30. Rc4 {[%emt 0:01:30]} Rd5 {[%emt 0:02:30]} 31. Qc3 {[%emt 0:01:30]} Rc5 {[%emt 0:00:54]} 32. b4 {[%emt 0:03:30]} Rxc4 {[%emt 0:01:22]} 33. Qxc4 {[%emt 0:00:30]} Qd7 {[%emt 0:00:00]} 34. g4 {[%emt 0:00:30]} b5 {[%emt 0:03:00]} 35. Qe4 {[%emt 0:02:30]} Qd5 {[%emt 0:01:43]} 36. Qxd5 {[%emt 0:00:30]} exd5 {[%emt 0:00:00]} 37. g5 {[%emt 0:02:30]} hxg5 {[%emt 0:02:20]} 38. Nxg5+ {[%emt 0:00:30]} Kg8 {[%emt 0:00:05]} 39. f4 {[%emt 0:03:30]} f6 {[%emt 0:05:13]} 40. Nf3 {[%emt 0:01:30]} fxe5 {[%emt 0:00:11]} 41. fxe5 {[%emt 0:00:00]} Kf7 {[%emt 0:02:18]} 42. Kg3 {[%emt 0:04:00]} a6 {[%emt 0:01:05]} 43. Kf4 {[%emt 0:11:30]} Bh6+ {[%emt 0:01:01]} 44. Kg4 {[%emt 0:00:30]} Ke6 {[%emt 0:03:12]} 45. g3 {[%emt 0:01:30]} Bc1 {[%emt 0:01:48]} 46. Ne1 {[%emt 0:00:30]} Bb2 {[%emt 0:02:42]} 47. Nd3 {[%emt 0:00:00]} Bxe5 {[%emt 0:00:00]} 48. Kg5 {[%emt 0:03:00]} Bxg3 {[%emt 0:00:50]} 49. Kxg6 {[%emt 0:00:30]} d4 {[%emt 0:00:33]} 50. Kg5 {[%emt 0:00:30]} Kd5 {[%emt 0:00:20]} 51. Kf5 {[%emt 0:00:30]} Bd6 {[%emt 0:00:11]} 52. Nb2 {[%emt 0:00:30]} Bf8 {[%emt 0:01:28]} 53. Kf4 {[%emt 0:00:30]} Bh6+ {[%emt 0:00:35]} 54. Kf3 {[%emt 0:00:00]} Bc1 {[%emt 0:00:28]} 55. Nd3 {[%emt 0:00:00]} Bxa3 {[%emt 0:00:00]} 56. Kf4 {[%emt 0:01:30]} Kc4 {[%emt 0:00:41]} 57. Ke4 {[%emt 0:00:30]} Bxb4 {[%emt 0:00:05]} 58. Ne5+ {[%emt 0:00:30]} Kc3 {[%emt 0:00:24]} 0-1

[Event "8th Mersin Open 2024"]
[Site "Mersin"]
[Date "2024.11.13"]
[Round "6"]
[White "Kurdas, Halil Ibrahim"]
[Black "Aslan, Berk Can"]
[Result "1-0"]
[ECO "E01"]
[WhiteElo "1887"]
[BlackElo "1720"]
[Annotator "NA RC"]
[PlyCount "122"]
[EventDate "2024.11.10"]
[EventType "swiss"]
[EventCountry "TUR"]
[SourceTitle "playchess.com"]
[Source "ChessBase"]
[SourceQuality "1"]
[TimeControl "5400+30"]

1. d4 {[%emt 0:01:00]} Nf6 {[%emt 0:01:00]} 2. c4 {[%emt 0:00:30]} e6 {[%emt 0:00:00]} 3. g3 {[%emt 0:00:00]} d5 {[%emt 0:01:00]} 4. Bg2 {[%emt 0:00:00]} Nbd7 {[%emt 0:00:00]} 5. Nf3 {[%emt 0:00:30]} b6 {[%emt 0:00:00]} 6. Qc2 {[%emt 0:00:30]} Bb7 {[%emt 0:00:30]} 7. O-O {[%emt 0:00:30]} Bd6 {[%emt 0:00:30]} 8. Nc3 {[%emt 0:00:30]} a6 {[%emt 0:00:30]} 9. Nd2 {[%emt 0:02:30]} c5 {[%emt 0:05:30]} 10. cxd5 {[%emt 0:04:30]} Nxd5 {[%emt 0:02:30]} 11. Nxd5 {[%emt 0:01:30]} Bxd5 {[%emt 0:03:30]} 12. e4 {[%emt 0:01:30]} Bb7 {[%emt 0:00:30]} 13. Nc4 {[%emt 0:00:30]} Bb8 {[%emt 0:01:30]} 14. d5 {[%emt 0:01:30]} e5 {[%emt 0:02:30]} 15. f4 {[%emt 0:00:30]} O-O {[%emt 0:09:30]} 16. b3 {[%emt 0:03:30]} b5 {[%emt 0:00:30]} 17. Ne3 {[%emt 0:00:00]} Ba7 {[%emt 0:03:30]} 18. Kh1 {[%emt 0:01:00]} Rc8 {[%emt 0:01:30]} 19. Bb2 {[%emt 0:01:30]} c4 {[%emt 0:00:30]} 20. Nf5 {[%emt 0:00:30]} c3 {[%emt 0:00:30]} 21. Ba3 {[%emt 0:00:30]} Bc5 {[%emt 0:00:30]} 22. b4 {[%emt 0:04:30]} Be7 {[%emt 0:02:30]} 23. Rf3 {[%emt 0:01:30]} Bf6 {[%emt 0:00:30]} 24. Rc1 {[%emt 0:02:30]} Nb6 {[%emt 0:01:30]} 25. Ne3 {[%emt 0:00:30]} Qe7 {[%emt 0:00:30]} 26. Rd1 {[%emt 0:08:30]} Nc4 {[%emt 0:13:30]} 27. Nf5 {[%emt 0:06:30]} Qd8 {[%emt 0:05:30]} 28. Bc1 {[%emt 0:00:00]} a5 {[%emt 0:02:30]} 29. a3 {[%emt 0:02:00]} axb4 {[%emt 0:03:30]} 30. axb4 {[%emt 0:00:30]} Kh8 {[%emt 0:03:30]} 31. Bf1 {[%emt 0:00:30]} g6 {[%emt 0:06:30]} 32. Ne3 {[%emt 0:01:30]} Nb2 {[%emt 0:05:30]} 33. Re1 {[%emt 0:05:30]} exf4 {[%emt 0:01:30]} 34. gxf4 {[%emt 0:00:30]} Bh4 {[%emt 0:00:00]} 35. Re2 {[%emt 0:00:30]} Na4 {[%emt 0:01:00]} 36. Rg2 {[%emt 0:01:30]} Qd7 {[%emt 0:00:30]} 37. f5 {[%emt 0:00:30]} Ba6 {[%emt 0:08:55]} 38. f6 {[%emt 0:02:30]} Qd6 {[%emt 0:00:25]} 39. Ng4 {[%emt 0:01:30]} h5 {[%emt 0:00:28]} 40. Bf4 {[%emt 0:00:30]} Qd8 {[%emt 0:01:43]} 41. Bh6 {[%emt 0:03:30]} Rg8 {[%emt 0:04:03]} 42. Bg7+ {[%emt 0:00:30]} Rxg7 {[%emt 0:00:30]} 43. fxg7+ {[%emt 0:00:30]} Kxg7 {[%emt 0:00:30]} 44. Ne5 {[%emt 0:00:30]} Rc7 {[%emt 0:00:30]} 45. Nc6 {[%emt 0:00:30]} Qd6 {[%emt 0:00:30]} 46. Rh3 {[%emt 0:00:30]} Qf6 {[%emt 0:00:30]} 47. Be2 {[%emt 0:01:30]} Rxc6 {[%emt 0:05:19]} 48. dxc6 {[%emt 0:00:30]} Bc8 {[%emt 0:00:04]} 49. e5 {[%emt 0:01:30]} Qe7 {[%emt 0:00:07]} 50. Re3 {[%emt 0:00:30]} Qxb4 {[%emt 0:00:26]} 51. e6 {[%emt 0:01:30]} Qb2 {[%emt 0:01:10]} 52. Bd3 {[%emt 0:00:30]} Bxe6 {[%emt 0:00:44]} 53. Rxe6 {[%emt 0:00:30]} fxe6 {[%emt 0:00:00]} 54. Qxb2 {[%emt 0:00:30]} cxb2 {[%emt 0:00:00]} 55. c7 {[%emt 0:00:30]} b1=Q+ {[%emt 0:00:21]} 56. Bxb1 {[%emt 0:00:00]} Nb6 {[%emt 0:00:09]} 57. Bxg6 {[%emt 0:00:00]} Kf8 {[%emt 0:00:00]} 58. Bd3 {[%emt 0:00:30]} Ke7 {[%emt 0:01:17]} 59. Bxb5 {[%emt 0:00:30]} Kd6 {[%emt 0:00:30]} 60. Rc2 {[%emt 0:00:30]} Nc8 {[%emt 0:00:00]} 61. Ba6 {[%emt 0:00:00]} Kd5 {[%emt 0:00:00]} 1-0

[Event "8th Mersin Open 2024"]
[Site "Mersin"]
[Date "2024.11.13"]
[Round "6"]
[White "Baghirov, Mahammad"]
[Black "Yigit, Ahmet Yasir"]
[Result "1-0"]
[ECO "A07"]
[WhiteElo "1875"]
[BlackElo "1927"]
[Annotator "NA RC"]
[PlyCount "117"]
[EventDate "2024.11.10"]
[EventType "swiss"]
[EventCountry "TUR"]
[SourceTitle "playchess.com"]
[Source "ChessBase"]
[SourceQuality "1"]
[TimeControl "5400+30"]

1. Nf3 {[%emt 0:01:00]} Nf6 {[%emt 0:01:00]} 2. g3 {[%emt 0:00:00]} d5 {[%emt 0:00:30]} 3. Bg2 {[%emt 0:00:00]} c6 {[%emt 0:00:30]} 4. O-O {[%emt 0:00:00]} Bf5 {[%emt 0:00:00]} 5. b3 {[%emt 0:00:00]} e6 {[%emt 0:00:00]} 6. Bb2 {[%emt 0:00:30]} Nbd7 {[%emt 0:00:00]} 7. d3 {[%emt 0:00:30]} Be7 {[%emt 0:00:00]} 8. Nbd2 {[%emt 0:00:30]} O-O {[%emt 0:00:30]} 9. Nh4 {[%emt 0:00:00]} Bg4 {[%emt 0:00:30]} 10. h3 {[%emt 0:00:00]} Bh5 {[%emt 0:00:00]} 11. g4 {[%emt 0:00:30]} Bg6 {[%emt 0:00:00]} 12. Nxg6 {[%emt 0:00:30]} fxg6 {[%emt 0:01:30]} 13. e4 {[%emt 0:00:30]} g5 {[%emt 0:01:30]} 14. Nf3 {[%emt 0:02:30]} Ne8 {[%emt 0:03:30]} 15. Qd2 {[%emt 0:04:30]} h6 {[%emt 0:01:30]} 16. exd5 {[%emt 0:01:30]} exd5 {[%emt 0:00:30]} 17. Nd4 {[%emt 0:00:30]} Nc7 {[%emt 0:03:30]} 18. c4 {[%emt 0:01:30]} Nb6 {[%emt 0:13:30]} 19. Rfe1 {[%emt 0:04:30]} Bf6 {[%emt 0:03:30]} 20. Rad1 {[%emt 0:00:30]} g6 {[%emt 0:02:30]} 21. Qc2 {[%emt 0:07:30]} Qd7 {[%emt 0:06:30]} 22. c5 {[%emt 0:02:30]} Nc8 {[%emt 0:02:30]} 23. Re3 {[%emt 0:00:30]} Qg7 {[%emt 0:00:30]} 24. Ne6 {[%emt 0:00:30]} Nxe6 {[%emt 0:00:30]} 25. Rxe6 {[%emt 0:00:30]} Bxb2 {[%emt 0:00:30]} 26. d4 {[%emt 0:00:30]} Ne7 {[%emt 0:00:30]} 27. Qxb2 {[%emt 0:00:30]} Rf6 {[%emt 0:00:30]} 28. Rde1 {[%emt 0:00:30]} Rxe6 {[%emt 0:00:30]} 29. Rxe6 {[%emt 0:00:30]} Rf8 {[%emt 0:00:30]} 30. Qe2 {[%emt 0:01:30]} Rf7 {[%emt 0:13:30]} 31. Qe3 {[%emt 0:00:00]} Kh7 {[%emt 0:00:30]} 32. Bf1 {[%emt 0:00:00]} Kg8 {[%emt 0:14:30]} 33. Bd3 {[%emt 0:01:30]} Kh7 {[%emt 0:01:30]} 34. b4 {[%emt 0:01:30]} a6 {[%emt 0:00:30]} 35. a4 {[%emt 0:00:00]} Kg8 {[%emt 0:00:30]} 36. Kg2 {[%emt 0:01:00]} Qf8 {[%emt 0:02:30]} 37. Bxg6 {[%emt 0:00:30]} Nxg6 {[%emt 0:05:30]} 38. Rxg6+ {[%emt 0:00:30]} Kh7 {[%emt 0:00:00]} 39. Re6 {[%emt 0:00:00]} Kg7 {[%emt 0:03:00]} 40. h4 {[%emt 0:02:00]} Rf6 {[%emt 0:02:16]} 41. Re7+ {[%emt 0:00:30]} Kg8 {[%emt 0:01:03]} 42. hxg5 {[%emt 0:00:30]} Rxf2+ {[%emt 0:00:29]} 43. Qxf2 {[%emt 0:00:30]} Qxe7 {[%emt 0:00:30]} 44. gxh6 {[%emt 0:00:30]} Qg5 {[%emt 0:02:13]} 45. Qf5 {[%emt 0:07:30]} Qd2+ {[%emt 0:01:18]} 46. Kg3 {[%emt 0:01:30]} Qe3+ {[%emt 0:00:39]} 47. Kh4 {[%emt 0:00:30]} Qxh6+ {[%emt 0:00:52]} 48. Qh5 {[%emt 0:00:00]} Qe6 {[%emt 0:00:36]} 49. Qg5+ {[%emt 0:00:00]} Kh8 {[%emt 0:00:01]} 50. Qe5+ {[%emt 0:02:30]} Qxe5 {[%emt 0:00:30]} 51. dxe5 {[%emt 0:00:00]} Kg7 {[%emt 0:00:30]} 52. Kg5 {[%emt 0:00:00]} Kf7 {[%emt 0:00:37]} 53. Kf5 {[%emt 0:00:00]} a5 {[%emt 0:00:37]} 54. bxa5 {[%emt 0:00:00]} Kg7 {[%emt 0:00:34]} 55. g5 {[%emt 0:00:30]} Kg8 {[%emt 0:01:39]} 56. e6 {[%emt 0:00:30]} Kg7 {[%emt 0:01:09]} 57. Ke5 {[%emt 0:00:00]} Kg6 {[%emt 0:00:29]} 58. e7 {[%emt 0:00:00]} Kf7 {[%emt 0:00:30]} 59. Kd6 {[%emt 0:00:30]} 1-0

[Event "8th Mersin Open 2024"]
[Site "Mersin"]
[Date "2024.11.13"]
[Round "6"]
[White "Asgharvand, Davood"]
[Black "Karaalioglu, Zeynel Mansur"]
[Result "0-1"]
[ECO "C10"]
[WhiteElo "1874"]
[BlackElo "1875"]
[Annotator "NA RC"]
[PlyCount "89"]
[EventDate "2024.11.10"]
[EventType "swiss"]
[EventCountry "TUR"]
[SourceTitle "playchess.com"]
[Source "ChessBase"]
[SourceQuality "1"]
[TimeControl "5400+30"]

1. e4 {[%emt 0:01:00]} e6 {[%emt 0:10:00]} 2. d4 {[%emt 0:00:00]} d5 {[%emt 0:00:00]} 3. Nc3 {[%emt 0:00:00]} Be7 {[%emt 0:00:00]} 4. Be3 {[%emt 0:02:30]} Nf6 {[%emt 0:00:30]} 5. Bd3 {[%emt 0:01:30]} b6 {[%emt 0:01:30]} 6. e5 {[%emt 0:03:30]} Nfd7 {[%emt 0:00:30]} 7. Qg4 {[%emt 0:00:30]} g5 {[%emt 0:00:00]} 8. Qh5 {[%emt 0:01:30]} c5 {[%emt 0:01:00]} 9. Nb5 {[%emt 0:03:30]} cxd4 {[%emt 0:01:30]} 10. Bxd4 {[%emt 0:08:30]} Nc6 {[%emt 0:00:30]} 11. Nf3 {[%emt 0:01:30]} a6 {[%emt 0:08:30]} 12. Nxg5 {[%emt 0:06:30]} Ndxe5 {[%emt 0:03:30]} 13. Nxf7 {[%emt 0:05:30]} Nxf7 {[%emt 0:00:30]} 14. Bxh8 {[%emt 0:01:30]} axb5 {[%emt 0:00:30]} 15. Bxb5 {[%emt 0:03:30]} Qd6 {[%emt 0:02:30]} 16. O-O {[%emt 0:00:30]} Bd7 {[%emt 0:00:30]} 17. Bc3 {[%emt 0:00:30]} Ncd8 {[%emt 0:00:30]} 18. Bxd7+ {[%emt 0:00:30]} Kxd7 {[%emt 0:00:30]} 19. Qxh7 {[%emt 0:00:30]} Ra4 {[%emt 0:00:30]} 20. Qd3 {[%emt 0:00:30]} Ng5 {[%emt 0:07:30]} 21. Rfe1 {[%emt 0:12:30]} Ne4 {[%emt 0:02:30]} 22. Be5 {[%emt 0:05:30]} Qc5 {[%emt 0:01:30]} 23. Rf1 {[%emt 0:01:30]} Nc6 {[%emt 0:01:30]} 24. Bc3 {[%emt 0:07:30]} Nxc3 {[%emt 0:05:30]} 25. bxc3 {[%emt 0:00:30]} Rc4 {[%emt 0:00:30]} 26. a4 {[%emt 0:07:30]} Rxc3 {[%emt 0:00:30]} 27. Qa6 {[%emt 0:00:30]} Rxc2 {[%emt 0:00:30]} 28. Qb7+ {[%emt 0:00:30]} Kd6 {[%emt 0:02:30]} 29. Rab1 {[%emt 0:00:30]} Bd8 {[%emt 0:00:30]} 30. g3 {[%emt 0:01:30]} Nd4 {[%emt 0:06:30]} 31. Qf7 {[%emt 0:03:30]} Bc7 {[%emt 0:03:30]} 32. Rfe1 {[%emt 0:01:30]} Kc6 {[%emt 0:03:30]} 33. Kg2 {[%emt 0:03:41]} Kb7 {[%emt 0:01:30]} 34. Red1 {[%emt 0:00:19]} Nf5 {[%emt 0:00:30]} 35. Rf1 {[%emt 0:02:30]} Ne3+ {[%emt 0:00:30]} 36. Kg1 {[%emt 0:00:00]} Nxf1 {[%emt 0:00:00]} 37. Rxf1 {[%emt 0:00:01]} Qc6 {[%emt 0:01:00]} 38. h4 {[%emt 0:00:30]} d4 {[%emt 0:00:00]} 39. a5 {[%emt 0:01:25]} bxa5 {[%emt 0:01:00]} 40. Qg7 {[%emt 0:01:37]} e5 {[%emt 0:00:30]} 41. h5 {[%emt 0:01:36]} d3 {[%emt 0:00:30]} 42. Qf7 {[%emt 0:01:47]} d2 {[%emt 0:02:30]} 43. Qb3+ {[%emt 0:00:30]} Bb6 {[%emt 0:00:30]} 44. h6 {[%emt 0:01:14]} Rc1 {[%emt 0:00:00]} 45. g4 {[%emt 0:03:04]} 0-1

[Event "8th Mersin Open 2024"]
[Site "Mersin"]
[Date "2024.11.13"]
[Round "6"]
[White "Orak, Yunus"]
[Black "Turkmen, Yusuf Cagan"]
[Result "0-1"]
[ECO "B32"]
[WhiteElo "1859"]
[BlackElo "1942"]
[Annotator "NA RC"]
[PlyCount "112"]
[EventDate "2024.11.10"]
[EventType "swiss"]
[EventCountry "TUR"]
[SourceTitle "playchess.com"]
[Source "ChessBase"]
[SourceQuality "1"]
[TimeControl "5400+30"]

1. e4 {[%emt 0:01:00]} c5 {[%emt 0:01:00]} 2. Nf3 {[%emt 0:00:30]} Nc6 {[%emt 0:00:30]} 3. d4 {[%emt 0:00:00]} cxd4 {[%emt 0:00:30]} 4. Nxd4 {[%emt 0:00:00]} e5 {[%emt 0:00:00]} 5. Nb5 {[%emt 0:00:30]} d6 {[%emt 0:00:00]} 6. N1c3 {[%emt 0:02:30]} a6 {[%emt 0:00:30]} 7. Na3 {[%emt 0:00:30]} Be7 {[%emt 0:00:00]} 8. Nc4 {[%emt 0:02:30]} b5 {[%emt 0:00:00]} 9. Ne3 {[%emt 0:01:30]} Nf6 {[%emt 0:00:00]} 10. Ned5 {[%emt 0:02:30]} O-O {[%emt 0:01:00]} 11. Be2 {[%emt 0:05:30]} Nxd5 {[%emt 0:09:30]} 12. Nxd5 {[%emt 0:00:30]} Bg5 {[%emt 0:00:30]} 13. O-O {[%emt 0:12:30]} Bxc1 {[%emt 0:01:30]} 14. Qxc1 {[%emt 0:05:30]} Be6 {[%emt 0:00:30]} 15. Ne3 {[%emt 0:04:30]} Nd4 {[%emt 0:14:30]} 16. Qd2 {[%emt 0:02:30]} Qh4 {[%emt 0:00:30]} 17. Bd3 {[%emt 0:00:30]} Qg5 {[%emt 0:00:30]} 18. Kh1 {[%emt 0:07:30]} Qd8 {[%emt 0:13:30]} 19. c3 {[%emt 0:00:30]} Nc6 {[%emt 0:00:00]} 20. a4 {[%emt 0:00:30]} Qb6 {[%emt 0:00:00]} 21. Bb1 {[%emt 0:06:30]} Na5 {[%emt 0:09:30]} 22. Ba2 {[%emt 0:00:30]} Nc4 {[%emt 0:01:30]} 23. Bxc4 {[%emt 0:00:30]} bxc4 {[%emt 0:00:30]} 24. Rfd1 {[%emt 0:03:30]} Rfd8 {[%emt 0:00:30]} 25. a5 {[%emt 0:00:30]} Qb7 {[%emt 0:05:30]} 26. Qc2 {[%emt 0:09:30]} Rab8 {[%emt 0:01:30]} 27. Rd2 {[%emt 0:01:30]} Qb5 {[%emt 0:08:30]} 28. Kg1 {[%emt 0:07:30]} h6 {[%emt 0:05:30]} 29. Kf1 {[%emt 0:01:30]} Kf8 {[%emt 0:03:30]} 30. Ke2 {[%emt 0:02:35]} Qc5 {[%emt 0:09:25]} 31. Qb1 {[%emt 0:04:32]} Rb5 {[%emt 0:02:05]} 32. Qa2 {[%emt 0:05:10]} Rdb8 {[%emt 0:01:58]} 33. Kf3 {[%emt 0:04:33]} g6 {[%emt 0:04:11]} 34. h3 {[%emt 0:02:16]} f5 {[%emt 0:04:00]} 35. exf5 {[%emt 0:02:23]} gxf5 {[%emt 0:00:02]} 36. Qa3 {[%emt 0:01:18]} Qxa3 {[%emt 0:02:00]} 37. Rxa3 {[%emt 0:00:05]} Ke7 {[%emt 0:00:30]} 38. Nd1 {[%emt 0:00:20]} Bd5+ {[%emt 0:02:23]} 39. Kg3 {[%emt 0:00:20]} Rg8+ {[%emt 0:00:35]} 40. Kh4 {[%emt 0:00:24]} Bxg2 {[%emt 0:01:42]} 41. Ne3 {[%emt 0:00:03]} Ke6 {[%emt 0:00:29]} 42. Nxc4 {[%emt 0:00:54]} d5 {[%emt 0:00:27]} 43. Nb6 {[%emt 0:00:53]} Be4 {[%emt 0:00:36]} 44. c4 {[%emt 0:00:44]} dxc4 {[%emt 0:00:47]} 45. Nxc4 {[%emt 0:00:03]} Rb4 {[%emt 0:00:16]} 46. Rc3 {[%emt 0:00:35]} Bd5 {[%emt 0:00:19]} 47. b3 {[%emt 0:00:41]} Rgb8 {[%emt 0:00:45]} 48. Kh5 {[%emt 0:00:30]} Rxb3 {[%emt 0:00:30]} 49. Rxb3 {[%emt 0:00:30]} Rxb3 {[%emt 0:00:30]} 50. Ne3 {[%emt 0:00:30]} Be4 {[%emt 0:00:30]} 51. h4 {[%emt 0:00:30]} f4 {[%emt 0:00:00]} 52. Nc4 {[%emt 0:00:48]} Bd3 {[%emt 0:00:46]} 53. Nb2 {[%emt 0:01:52]} Bb5 {[%emt 0:00:15]} 54. Kxh6 {[%emt 0:00:16]} Kf5 {[%emt 0:00:28]} 55. h5 {[%emt 0:01:58]} Rh3 {[%emt 0:00:15]} 56. Rd5 {[%emt 0:00:00]} Be2 {[%emt 0:00:34]} 0-1

[Event "8th Mersin Open 2024"]
[Site "Mersin"]
[Date "2024.11.13"]
[Round "6"]
[White "Azizli, Nurlan"]
[Black "Avsar, Gediz"]
[Result "0-1"]
[ECO "A75"]
[WhiteElo "1853"]
[BlackElo "1926"]
[Annotator "NA RC"]
[PlyCount "152"]
[EventDate "2024.11.10"]
[EventType "swiss"]
[EventCountry "TUR"]
[SourceTitle "playchess.com"]
[Source "ChessBase"]
[SourceQuality "1"]
[TimeControl "5400+30"]

1. d4 {[%emt 0:01:00]} Nf6 {[%emt 0:01:00]} 2. Nf3 {[%emt 0:00:30]} e6 {[%emt 0:00:00]} 3. c4 {[%emt 0:00:00]} c5 {[%emt 0:00:00]} 4. d5 {[%emt 0:00:00]} exd5 {[%emt 0:00:30]} 5. cxd5 {[%emt 0:00:00]} d6 {[%emt 0:00:30]} 6. Nc3 {[%emt 0:00:00]} g6 {[%emt 0:00:00]} 7. e4 {[%emt 0:00:30]} Bg7 {[%emt 0:00:00]} 8. Be2 {[%emt 0:00:00]} O-O {[%emt 0:01:30]} 9. O-O {[%emt 0:00:00]} Bg4 {[%emt 0:00:00]} 10. Nd2 {[%emt 0:00:30]} Bxe2 {[%emt 0:00:00]} 11. Qxe2 {[%emt 0:00:00]} a6 {[%emt 0:01:30]} 12. a4 {[%emt 0:00:00]} Nbd7 {[%emt 0:03:30]} 13. Nc4 {[%emt 0:00:30]} Nb6 {[%emt 0:10:30]} 14. Ne3 {[%emt 0:02:30]} Qe7 {[%emt 0:02:30]} 15. a5 {[%emt 0:00:30]} Nbd7 {[%emt 0:00:30]} 16. Nc4 {[%emt 0:00:30]} Ne5 {[%emt 0:00:30]} 17. Nb6 {[%emt 0:00:30]} Rae8 {[%emt 0:05:30]} 18. Bg5 {[%emt 0:01:30]} h6 {[%emt 0:09:30]} 19. Bh4 {[%emt 0:00:30]} g5 {[%emt 0:01:30]} 20. Bg3 {[%emt 0:00:30]} Nfd7 {[%emt 0:00:30]} 21. Nc4 {[%emt 0:02:30]} Nxc4 {[%emt 0:06:30]} 22. Qxc4 {[%emt 0:00:30]} Ne5 {[%emt 0:00:30]} 23. Qe2 {[%emt 0:00:30]} Ng6 {[%emt 0:00:30]} 24. Qd2 {[%emt 0:00:30]} h5 {[%emt 0:00:30]} 25. h3 {[%emt 0:00:30]} h4 {[%emt 0:00:30]} 26. Bh2 {[%emt 0:00:30]} Be5 {[%emt 0:00:30]} 27. Rae1 {[%emt 0:00:30]} Bxh2+ {[%emt 0:00:30]} 28. Kxh2 {[%emt 0:00:30]} Qe5+ {[%emt 0:00:30]} 29. Kg1 {[%emt 0:00:30]} Nf4 {[%emt 0:17:30]} 30. Nd1 {[%emt 0:10:30]} Kg7 {[%emt 0:06:30]} 31. f3 {[%emt 0:07:30]} Qd4+ {[%emt 0:00:30]} 32. Rf2 {[%emt 0:06:30]} Qxd2 {[%emt 0:05:30]} 33. Rxd2 {[%emt 0:00:30]} f5 {[%emt 0:03:30]} 34. Nf2 {[%emt 0:01:30]} Nh5 {[%emt 0:04:30]} 35. b4 {[%emt 0:03:30]} cxb4 {[%emt 0:04:08]} 36. Rb2 {[%emt 0:00:30]} Ng3 {[%emt 0:01:10]} 37. Rxb4 {[%emt 0:00:30]} Rf7 {[%emt 0:00:09]} 38. Rb6 {[%emt 0:04:30]} fxe4 {[%emt 0:01:03]} 39. Nxe4 {[%emt 0:02:30]} Nxe4 {[%emt 0:01:49]} 40. fxe4 {[%emt 0:00:30]} Rd7 {[%emt 0:00:49]} 41. Re3 {[%emt 0:01:30]} Kf6 {[%emt 0:03:05]} 42. Rf3+ {[%emt 0:01:30]} Kg6 {[%emt 0:00:56]} 43. Re3 {[%emt 0:00:30]} Kf6 {[%emt 0:00:00]} 44. Kf2 {[%emt 0:00:30]} Ke5 {[%emt 0:02:42]} 45. Rf3 {[%emt 0:03:30]} Ree7 {[%emt 0:01:04]} 46. Ke3 {[%emt 0:01:30]} Rf7 {[%emt 0:00:05]} 47. Rb4 {[%emt 0:03:30]} Rc7 {[%emt 0:01:37]} 48. Rxf7 {[%emt 0:01:30]} Rxf7 {[%emt 0:00:04]} 49. Rc4 {[%emt 0:01:30]} Rf4 {[%emt 0:02:03]} 50. Rb4 {[%emt 0:01:30]} g4 {[%emt 0:00:50]} 51. hxg4 {[%emt 0:01:30]} Rxg4 {[%emt 0:00:06]} 52. Rxb7 {[%emt 0:06:30]} Rxe4+ {[%emt 0:00:06]} 53. Kf3 {[%emt 0:00:30]} Rf4+ {[%emt 0:00:20]} 54. Ke3 {[%emt 0:00:30]} Re4+ {[%emt 0:00:31]} 55. Kf3 {[%emt 0:00:30]} Rf4+ {[%emt 0:00:00]} 56. Ke3 {[%emt 0:01:30]} Ra4 {[%emt 0:00:00]} 57. Rh7 {[%emt 0:00:30]} Kxd5 {[%emt 0:00:17]} 58. Rh6 {[%emt 0:01:30]} Kc5 {[%emt 0:00:42]} 59. Rh5+ {[%emt 0:01:30]} d5 {[%emt 0:00:58]} 60. Kd2 {[%emt 0:02:30]} Rg4 {[%emt 0:01:08]} 61. Kc1 {[%emt 0:00:00]} Rxg2 {[%emt 0:01:44]} 62. Rxh4 {[%emt 0:00:00]} Ra2 {[%emt 0:00:00]} 63. Rh5 {[%emt 0:00:30]} Rxa5 {[%emt 0:00:10]} 64. Kb2 {[%emt 0:00:30]} Kc4 {[%emt 0:00:45]} 65. Kc2 {[%emt 0:00:00]} Ra3 {[%emt 0:01:05]} 66. Rh8 {[%emt 0:00:00]} a5 {[%emt 0:01:59]} 67. Rh4+ {[%emt 0:01:30]} d4 {[%emt 0:00:43]} 68. Rh8 {[%emt 0:00:00]} Ra2+ {[%emt 0:00:01]} 69. Kc1 {[%emt 0:00:00]} a4 {[%emt 0:01:53]} 70. Rh3 {[%emt 0:00:30]} a3 {[%emt 0:00:56]} 71. Rg3 {[%emt 0:01:30]} d3 {[%emt 0:01:20]} 72. Rg8 {[%emt 0:00:30]} Ra1+ {[%emt 0:00:00]} 73. Kd2 {[%emt 0:00:30]} a2 {[%emt 0:00:04]} 74. Rc8+ {[%emt 0:00:30]} Kd5 {[%emt 0:00:30]} 75. Rd8+ {[%emt 0:00:00]} Kc6 {[%emt 0:00:00]} 76. Rxd3 {[%emt 0:00:00]} Rb1 {[%emt 0:00:00]} 0-1